[Event "*** SCC Grand Prix: Titled Tuesday Blitz"]
[Site "Chess.com"]
[Date "2020.07.14"]
[Round "2"]
[White "AttackSparrow"]
[Black "AldokhinIvan"]
[Result "1-0"]
[WhiteElo "2309"]
[BlackElo "2568"]
[TimeControl "180+1"]
[EndTime "10:19:48 PDT"]
[Termination "AttackSparrow won by checkmate"]

1. e4 {[%clk 0:03:00.9]} 1... c6 {[%clk 0:01:07.1]} 2. d4 {[%clk 0:02:53.1]}
2... d5 {[%clk 0:01:07.5]} 3. exd5 {[%clk 0:02:53.1]} 3... cxd5 {[%clk
0:01:07.9]} 4. c4 {[%clk 0:02:53.7]} 4... Nc6 {[%clk 0:01:08.6]} 5. Nc3 {[%clk
0:02:53.6]} 5... Nf6 {[%clk 0:01:08.6]} 6. Bg5 {[%clk 0:02:52.6]} 6... e6 {[%clk
0:01:00.8]} 7. c5 {[%clk 0:02:51.7]} 7... Be7 {[%clk 0:01:00.4]} 8. Bb5 {[%clk
0:02:49.2]} 8... O-O {[%clk 0:01:00]} 9. Nf3 {[%clk 0:02:49.4]} 9... Ne4 {[%clk
0:00:58.5]} 10. Bxe7 {[%clk 0:02:50.3]} 10... Qxe7 {[%clk 0:00:54.5]} 11. O-O
{[%clk 0:02:48.8]} 11... f5 {[%clk 0:00:52]} 12. Rc1 {[%clk 0:02:46]} 12... Bd7
{[%clk 0:00:51.1]} 13. Re1 {[%clk 0:02:36.9]} 13... Rf6 {[%clk 0:00:48.4]} 14.
Bxc6 {[%clk 0:02:34.7]} 14... Bxc6 {[%clk 0:00:48.5]} 15. Ne5 {[%clk 0:02:34.4]}
15... Rh6 {[%clk 0:00:46.9]} 16. g3 {[%clk 0:02:13.9]} 16... Rf8 {[%clk
0:00:43.3]} 17. Ne2 {[%clk 0:02:07.5]} 17... f4 {[%clk 0:00:38]} 18. Nxf4 {[%clk
0:01:38.7]} 18... Rxf4 {[%clk 0:00:37.2]} 19. gxf4 {[%clk 0:01:39.6]} 19... Qh4
{[%clk 0:00:35.9]} 20. Ng4 {[%clk 0:00:57.6]} 20... Rg6 {[%clk 0:00:21]} 21. f3
{[%clk 0:00:57.9]} 21... h5 {[%clk 0:00:20.3]} 22. Qc2 {[%clk 0:00:50.5]} 22...
Kh7 {[%clk 0:00:12.1]} 23. Kh1 {[%clk 0:00:41.3]} 23... hxg4 {[%clk 0:00:11.7]}
24. fxe4 {[%clk 0:00:41.1]} 24... dxe4 {[%clk 0:00:12.2]} 25. Re3 {[%clk
0:00:38.5]} 25... g3 {[%clk 0:00:12.7]} 26. Rg1 {[%clk 0:00:15.5]} 26... Qxf4
{[%clk 0:00:12.7]} 27. Qe2 {[%clk 0:00:15.7]} 27... g2+ {[%clk 0:00:11.4]} 28.
Rxg2 {[%clk 0:00:15.8]} 28... Rxg2 {[%clk 0:00:11.6]} 29. Kxg2 {[%clk
0:00:16.7]} 29... Qg5+ {[%clk 0:00:12]} 30. Kf1 {[%clk 0:00:16.5]} 30... Kg8
{[%clk 0:00:12]} 31. Qf2 {[%clk 0:00:16.2]} 31... Qd8 {[%clk 0:00:11.2]} 32. Rg3
{[%clk 0:00:15.6]} 32... Qe7 {[%clk 0:00:09.3]} 33. Qe3 {[%clk 0:00:15.3]} 33...
Bd5 {[%clk 0:00:09.2]} 34. b3 {[%clk 0:00:14.8]} 34... b6 {[%clk 0:00:09.5]} 35.
Qg5 {[%clk 0:00:14]} 35... Qf7+ {[%clk 0:00:09.3]} 36. Ke1 {[%clk 0:00:14.2]}
36... Qd7 {[%clk 0:00:08.5]} 37. Qe5 {[%clk 0:00:13.2]} 37... bxc5 {[%clk
0:00:08]} 38. dxc5 {[%clk 0:00:14.1]} 38... Qb7 {[%clk 0:00:07.6]} 39. h4 {[%clk
0:00:09]} 39... Qb4+ {[%clk 0:00:07.1]} 40. Kf2 {[%clk 0:00:09.3]} 40... Qd2+
{[%clk 0:00:06]} 41. Kg1 {[%clk 0:00:09.9]} 41... Qe1+ {[%clk 0:00:05.9]} 42.
Kh2 {[%clk 0:00:10.3]} 42... Qf2+ {[%clk 0:00:06.2]} 43. Kh3 {[%clk 0:00:10.7]}
43... Qf1+ {[%clk 0:00:05.8]} 44. Kh2 {[%clk 0:00:10.9]} 44... Qf2+ {[%clk
0:00:06.1]} 45. Kh3 {[%clk 0:00:11.4]} 45... Qf7 {[%clk 0:00:06.7]} 46. h5
{[%clk 0:00:10.1]} 46... e3 {[%clk 0:00:07.2]} 47. Rxe3 {[%clk 0:00:09.6]} 47...
Qf1+ {[%clk 0:00:06.7]} 48. Kh4 {[%clk 0:00:09.5]} 48... Qh1+ {[%clk 0:00:06.6]}
49. Kg3 {[%clk 0:00:09.2]} 49... Qg1+ {[%clk 0:00:06.7]} 50. Kh4 {[%clk
0:00:09.7]} 50... Qf2+ {[%clk 0:00:06.2]} 51. Qg3 {[%clk 0:00:08.9]} 51... Qf6+
{[%clk 0:00:06]} 52. Kh3 {[%clk 0:00:08.1]} 52... Qf5+ {[%clk 0:00:06.4]} 53.
Qg4 {[%clk 0:00:07]} 53... Qf1+ {[%clk 0:00:05.4]} 54. Kh4 {[%clk 0:00:05.5]}
54... Qf2+ {[%clk 0:00:05.5]} 55. Qg3 {[%clk 0:00:05.8]} 55... Qf6+ {[%clk
0:00:05.6]} 56. Kh3 {[%clk 0:00:06.4]} 56... Kh8 {[%clk 0:00:05.7]} 57. Qb8+
{[%clk 0:00:04.7]} 57... Kh7 {[%clk 0:00:05.5]} 58. Qe5 {[%clk 0:00:05.5]} 58...
Qf1+ {[%clk 0:00:05.1]} 59. Kh4 {[%clk 0:00:05.1]} 59... Qf2+ {[%clk 0:00:05.4]}
60. Qg3 {[%clk 0:00:05.1]} 60... Qf6+ {[%clk 0:00:05.4]} 61. Qg5 {[%clk
0:00:05.7]} 61... Qf2+ {[%clk 0:00:05.4]} 62. Qg3 {[%clk 0:00:04.4]} 62... Qf1
{[%clk 0:00:05.7]} 63. Qg6+ {[%clk 0:00:04.1]} 63... Kh8 {[%clk 0:00:05.7]} 64.
Qe8+ {[%clk 0:00:04.6]} 64... Kh7 {[%clk 0:00:05.4]} 65. Qg6+ {[%clk 0:00:05.1]}
65... Kg8 {[%clk 0:00:05.7]} 66. Rg3 {[%clk 0:00:04.6]} 66... Qh1+ {[%clk
0:00:05.3]} 67. Kg4 {[%clk 0:00:04.1]} 67... Qd1+ {[%clk 0:00:04.1]} 68. Kf4
{[%clk 0:00:03.7]} 68... Qd2+ {[%clk 0:00:04.1]} 69. Ke5 {[%clk 0:00:03.8]}
69... Qe1+ {[%clk 0:00:03]} 70. Kd6 {[%clk 0:00:04]} 70... Qa1 {[%clk
0:00:01.9]} 71. Qe8+ {[%clk 0:00:03]} 71... Kh7 {[%clk 0:00:02.1]} 72. Qg6+
{[%clk 0:00:03.9]} 72... Kg8 {[%clk 0:00:02.5]} 73. h6 {[%clk 0:00:04.8]} 73...
Be4 {[%clk 0:00:01]} 74. Qxg7+ {[%clk 0:00:04.9]} 74... Qxg7 {[%clk 0:00:01.1]}
75. Rxg7+ {[%clk 0:00:05.8]} 75... Kf8 {[%clk 0:00:01.6]} 76. Kxe6 {[%clk
0:00:06.7]} 76... Ke8 {[%clk 0:00:02.2]} 77. h7 {[%clk 0:00:06]} 77... Kd8
{[%clk 0:00:02.3]} 78. h8=Q# {[%clk 0:00:06]} 1-0

[Event "*** SCC Grand Prix: Titled Tuesday Blitz"]
[Site "Chess.com"]
[Date "2020.07.14"]
[Round "2"]
[White "jens1102"]
[Black "Supernotar"]
[Result "0-1"]
[WhiteElo "2423"]
[BlackElo "2842"]
[TimeControl "180+1"]
[EndTime "10:19:54 PDT"]
[Termination "Supernotar won by checkmate"]

1. c4 {[%clk 0:03:00.9]} 1... c5 {[%clk 0:02:59.7]} 2. Nf3 {[%clk 0:03:00.6]}
2... Nc6 {[%clk 0:02:59.5]} 3. Nc3 {[%clk 0:03:01.1]} 3... g6 {[%clk 0:02:59.3]}
4. g3 {[%clk 0:03:00.4]} 4... Bg7 {[%clk 0:02:59.2]} 5. Bg2 {[%clk 0:03:01.1]}
5... e6 {[%clk 0:02:59.4]} 6. O-O {[%clk 0:03:01.6]} 6... Nge7 {[%clk
0:02:59.7]} 7. e3 {[%clk 0:02:58]} 7... O-O {[%clk 0:02:59.3]} 8. d4 {[%clk
0:02:58.1]} 8... cxd4 {[%clk 0:02:59.4]} 9. exd4 {[%clk 0:02:58.2]} 9... d5
{[%clk 0:02:59.3]} 10. cxd5 {[%clk 0:02:54]} 10... Nxd5 {[%clk 0:02:59.2]} 11.
Nxd5 {[%clk 0:02:54]} 11... exd5 {[%clk 0:03:00.1]} 12. h3 {[%clk 0:02:46.6]}
12... Qb6 {[%clk 0:02:57.7]} 13. Qb3 {[%clk 0:02:10.9]} 13... Qxb3 {[%clk
0:02:35.4]} 14. axb3 {[%clk 0:02:11.8]} 14... Nxd4 {[%clk 0:02:34.4]} 15. Nxd4
{[%clk 0:02:09.4]} 15... Bxd4 {[%clk 0:02:35.3]} 16. Rd1 {[%clk 0:02:09.6]}
16... Bg7 {[%clk 0:02:26.9]} 17. Bxd5 {[%clk 0:02:06.6]} 17... Bxh3 {[%clk
0:02:25.2]} 18. Bxb7 {[%clk 0:02:07.2]} 18... Rad8 {[%clk 0:02:24.6]} 19. Rxd8
{[%clk 0:02:01.8]} 19... Rxd8 {[%clk 0:02:23.7]} 20. Be3 {[%clk 0:02:01.7]}
20... Bxb2 {[%clk 0:02:16]} 21. Rxa7 {[%clk 0:01:55.8]} 21... Kg7 {[%clk
0:02:09.1]} 22. Bg2 {[%clk 0:01:50.2]} 22... Bxg2 {[%clk 0:02:03.5]} 23. Kxg2
{[%clk 0:01:50.2]} 23... Rb8 {[%clk 0:02:01]} 24. Ra6 {[%clk 0:01:32.1]} 24...
Rxb3 {[%clk 0:01:55.4]} 25. Rb6 {[%clk 0:01:32.5]} 25... Rxb6 {[%clk 0:01:53.2]}
26. Bxb6 {[%clk 0:01:33.4]} 26... h5 {[%clk 0:01:48.2]} 27. Be3 {[%clk
0:01:33.1]} 27... Kf6 {[%clk 0:01:47.3]} 28. Bd2 {[%clk 0:01:32.8]} 28... Kf5
{[%clk 0:01:46.6]} 29. f3 {[%clk 0:01:32.8]} 29... Bd4 {[%clk 0:01:41.5]} 30.
Ba5 {[%clk 0:01:32]} 30... Ke6 {[%clk 0:01:40.7]} 31. Bc7 {[%clk 0:01:31.8]}
31... Kd5 {[%clk 0:01:40.6]} 32. Bd8 {[%clk 0:01:31.8]} 32... Kc4 {[%clk
0:01:40.4]} 33. Be7 {[%clk 0:01:31.9]} 33... Kd3 {[%clk 0:01:40.1]} 34. Bd8
{[%clk 0:01:29.5]} 34... Ke2 {[%clk 0:01:38.9]} 35. Be7 {[%clk 0:01:27.3]} 35...
Bb6 {[%clk 0:01:37.6]} 36. Bf6 {[%clk 0:01:27]} 36... Bc5 {[%clk 0:01:36.8]} 37.
Bd8 {[%clk 0:01:27.1]} 37... Be3 {[%clk 0:01:35.8]} 38. Be7 {[%clk 0:01:26.3]}
38... f5 {[%clk 0:01:34.9]} 39. f4 {[%clk 0:01:10.6]} 39... Bd4 {[%clk
0:01:31.9]} 40. Bd8 {[%clk 0:01:10.1]} 40... Bc5 {[%clk 0:01:31.3]} 41. Bf6
{[%clk 0:01:09.7]} 41... Kd3 {[%clk 0:01:30.7]} 42. Bd8 {[%clk 0:01:10]} 42...
Bd4 {[%clk 0:01:30]} 43. Kf3 {[%clk 0:01:08.8]} 43... Bc5 {[%clk 0:01:26.9]} 44.
Bf6 {[%clk 0:01:08.4]} 44... Bb6 {[%clk 0:01:24.8]} 45. Be7 {[%clk 0:01:08.4]}
45... Kd2 {[%clk 0:01:22.3]} 46. Bf6 {[%clk 0:01:08.3]} 46... Ke1 {[%clk
0:01:18.7]} 47. Be7 {[%clk 0:01:02.8]} 47... Bd4 {[%clk 0:01:16.4]} 48. Bd8
{[%clk 0:01:02.9]} 48... Kf1 {[%clk 0:01:16.2]} 49. Be7 {[%clk 0:01:03]} 49...
Kg1 {[%clk 0:01:15.2]} 50. Bd8 {[%clk 0:01:03.3]} 50... Kh2 {[%clk 0:01:14.7]}
51. Be7 {[%clk 0:01:02.7]} 51... Kh3 {[%clk 0:01:14.2]} 52. Bd8 {[%clk
0:01:01.4]} 52... Bc5 {[%clk 0:01:13.7]} 53. Bf6 {[%clk 0:01:01]} 53... Bb6
{[%clk 0:01:13.9]} 54. Be7 {[%clk 0:01:01.1]} 54... Ba5 {[%clk 0:01:13.8]} 55.
Kf2 {[%clk 0:00:41.8]} 55... Kg4 {[%clk 0:01:12.1]} 56. Bf6 {[%clk 0:00:37.7]}
56... Bb6+ {[%clk 0:01:10]} 57. Kg2 {[%clk 0:00:37.7]} 57... Be3 {[%clk
0:01:09.6]} 58. Bd8 {[%clk 0:00:36.7]} 58... Bd2 {[%clk 0:00:53.7]} 59. Be7
{[%clk 0:00:21.7]} 59... Be1 {[%clk 0:00:49.3]} 60. Bh4 {[%clk 0:00:20.6]} 60...
Bd2 {[%clk 0:00:41.4]} 61. Be7 {[%clk 0:00:20.5]} 61... Bxf4 {[%clk 0:00:39.8]}
62. gxf4 {[%clk 0:00:20.4]} 62... Kxf4 {[%clk 0:00:40.7]} 63. Bd6+ {[%clk
0:00:20]} 63... Kg4 {[%clk 0:00:40.8]} 64. Be7 {[%clk 0:00:20.4]} 64... g5
{[%clk 0:00:39.7]} 65. Bd6 {[%clk 0:00:20.5]} 65... f4 {[%clk 0:00:39.1]} 66.
Bc7 {[%clk 0:00:20.6]} 66... Kf5 {[%clk 0:00:36.1]} 67. Kf3 {[%clk 0:00:20]}
67... g4+ {[%clk 0:00:36]} 68. Kf2 {[%clk 0:00:20.5]} 68... h4 {[%clk
0:00:35.9]} 69. Bb6 {[%clk 0:00:18.5]} 69... Ke4 {[%clk 0:00:35.1]} 70. Bc5
{[%clk 0:00:15.4]} 70... h3 {[%clk 0:00:34.7]} 71. Kg1 {[%clk 0:00:15.6]} 71...
g3 {[%clk 0:00:34.6]} 72. Bd6 {[%clk 0:00:15]} 72... Kf3 {[%clk 0:00:33.9]} 73.
Bc7 {[%clk 0:00:15]} 73... h2+ {[%clk 0:00:24.4]} 74. Kh1 {[%clk 0:00:14.5]}
74... Kf2 {[%clk 0:00:18.7]} 75. Bb6+ {[%clk 0:00:12.7]} 75... Kf1 {[%clk
0:00:16.4]} 76. Bc5 {[%clk 0:00:07.3]} 76... f3 {[%clk 0:00:12.5]} 77. Bb6
{[%clk 0:00:03.1]} 77... f2 {[%clk 0:00:09.3]} 78. Bxf2 {[%clk 0:00:01.7]} 78...
gxf2 {[%clk 0:00:09]} 79. Kxh2 {[%clk 0:00:02.6]} 79... Ke2 {[%clk 0:00:09.3]}
80. Kg3 {[%clk 0:00:03.5]} 80... f1=Q {[%clk 0:00:09.7]} 81. Kg4 {[%clk
0:00:04.4]} 81... Ke3 {[%clk 0:00:09.8]} 82. Kh4 {[%clk 0:00:04.8]} 82... Qf8
{[%clk 0:00:09]} 83. Kg3 {[%clk 0:00:05.7]} 83... Qg7+ {[%clk 0:00:08.6]} 84.
Kh2 {[%clk 0:00:06.6]} 84... Kf2 {[%clk 0:00:08.6]} 85. Kh1 {[%clk 0:00:07.5]}
85... Qg2# {[%clk 0:00:08.5]} 0-1

[Event "*** SCC Grand Prix: Titled Tuesday Blitz"]
[Site "Chess.com"]
[Date "2020.07.14"]
[Round "2"]
[White "Schandenfreude"]
[Black "Witik"]
[Result "0-1"]
[WhiteElo "2455"]
[BlackElo "2673"]
[TimeControl "180+1"]
[EndTime "10:20:00 PDT"]
[Termination "Witik won on time"]

1. Nf3 {[%clk 0:03:00.9]} 1... Nf6 {[%clk 0:02:57.4]} 2. b3 {[%clk 0:02:50.4]}
2... d5 {[%clk 0:02:56.8]} 3. Bb2 {[%clk 0:02:49.9]} 3... Bg4 {[%clk 0:02:55.5]}
4. e3 {[%clk 0:02:49.4]} 4... Nbd7 {[%clk 0:02:55.6]} 5. Be2 {[%clk 0:02:47.6]}
5... e6 {[%clk 0:02:55.5]} 6. c4 {[%clk 0:02:46.6]} 6... Be7 {[%clk 0:02:53.8]}
7. O-O {[%clk 0:02:40.8]} 7... O-O {[%clk 0:02:53.7]} 8. cxd5 {[%clk 0:02:23.3]}
8... exd5 {[%clk 0:02:53.4]} 9. d3 {[%clk 0:02:23.8]} 9... Re8 {[%clk
0:02:51.6]} 10. a3 {[%clk 0:02:24.1]} 10... Bd6 {[%clk 0:02:49.9]} 11. Nbd2
{[%clk 0:02:24]} 11... c6 {[%clk 0:02:43.7]} 12. Re1 {[%clk 0:02:24]} 12... a5
{[%clk 0:02:39.2]} 13. Qc2 {[%clk 0:02:23.7]} 13... Rc8 {[%clk 0:02:33.5]} 14.
Bc3 {[%clk 0:02:20.7]} 14... Bb8 {[%clk 0:02:25]} 15. b4 {[%clk 0:02:15.5]}
15... axb4 {[%clk 0:02:23.7]} 16. axb4 {[%clk 0:02:15]} 16... Nf8 {[%clk
0:02:06.7]} 17. Qb2 {[%clk 0:02:12.6]} 17... Ng6 {[%clk 0:01:53.1]} 18. Bxf6
{[%clk 0:02:08.4]} 18... gxf6 {[%clk 0:01:54]} 19. d4 {[%clk 0:02:05.5]} 19...
Kg7 {[%clk 0:01:43.7]} 20. Bf1 {[%clk 0:01:47.8]} 20... h5 {[%clk 0:01:42.7]}
21. Rec1 {[%clk 0:01:36.9]} 21... h4 {[%clk 0:01:39.4]} 22. b5 {[%clk
0:01:31.5]} 22... Qd6 {[%clk 0:01:35.6]} 23. bxc6 {[%clk 0:01:28.9]} 23... bxc6
{[%clk 0:01:35.6]} 24. Qa3 {[%clk 0:01:26.5]} 24... Qe6 {[%clk 0:01:32.5]} 25.
Qa6 {[%clk 0:01:09.6]} 25... f5 {[%clk 0:01:18.2]} 26. Re1 {[%clk 0:00:35.7]}
26... Qf6 {[%clk 0:01:12.7]} 27. Rac1 {[%clk 0:00:23.7]} 27... f4 {[%clk
0:01:12.4]} 28. e4 {[%clk 0:00:23.8]} 28... h3 {[%clk 0:01:10.3]} 29. e5 {[%clk
0:00:23.1]} 29... Qe6 {[%clk 0:01:01.7]} 30. g3 {[%clk 0:00:22]} 30... fxg3
{[%clk 0:01:00.5]} 31. hxg3 {[%clk 0:00:20.5]} 31... h2+ {[%clk 0:00:49.9]} 32.
Kxh2 {[%clk 0:00:19.3]} 32... Rh8+ {[%clk 0:00:49.4]} 33. Kg1 {[%clk 0:00:19.6]}
33... Rh6 {[%clk 0:00:30.1]} 34. Bg2 {[%clk 0:00:18.9]} 34... Ne7 {[%clk
0:00:26]} 35. Qd3 {[%clk 0:00:13.9]} 35... Rch8 {[%clk 0:00:25.6]} 36. Nh4
{[%clk 0:00:13.5]} 36... Ba7 {[%clk 0:00:21.2]} 37. Ndf3 {[%clk 0:00:13.2]}
37... Nf5 {[%clk 0:00:20.3]} 38. Nxf5+ {[%clk 0:00:12.2]} 38... Bxf5 {[%clk
0:00:21.2]} 39. Qe3 {[%clk 0:00:12.2]} 39... Be4 {[%clk 0:00:21.6]} 40. Nh4
{[%clk 0:00:12.2]} 40... Rxh4 {[%clk 0:00:18.2]} 41. gxh4 {[%clk 0:00:12.2]}
41... Rxh4 {[%clk 0:00:19]} 42. f3 {[%clk 0:00:11.8]} 42... Bg6 {[%clk
0:00:15.4]} 43. Qg5 {[%clk 0:00:11.4]} 43... Bxd4+ {[%clk 0:00:14]} 44. Kf1
{[%clk 0:00:10.5]} 44... Rh5 {[%clk 0:00:09.6]} 45. Qf6+ {[%clk 0:00:10.3]}
45... Qxf6 {[%clk 0:00:09.7]} 46. exf6+ {[%clk 0:00:11.2]} 46... Kh7 {[%clk
0:00:09.4]} 47. Red1 {[%clk 0:00:08.3]} 47... c5 {[%clk 0:00:09.3]} 48. Rxd4
{[%clk 0:00:07.4]} 48... cxd4 {[%clk 0:00:09.5]} 49. Rd1 {[%clk 0:00:08.3]}
49... d3 {[%clk 0:00:10]} 50. Kf2 {[%clk 0:00:08.4]} 50... Kh6 {[%clk
0:00:05.8]} 51. f4 {[%clk 0:00:06.9]} 51... Be4 {[%clk 0:00:05.3]} 52. Bf3
{[%clk 0:00:05]} 52... Bxf3 {[%clk 0:00:02.7]} 53. Kxf3 {[%clk 0:00:05.1]} 53...
Kg6 {[%clk 0:00:03.3]} 54. Kg4 {[%clk 0:00:04.9]} 54... Rf5 {[%clk 0:00:01.5]}
55. Rxd3 {[%clk 0:00:05.2]} 55... Kxf6 {[%clk 0:00:02.3]} 56. Ra3 {[%clk
0:00:04.9]} 56... Kg6 {[%clk 0:00:02.9]} 57. Ra6+ {[%clk 0:00:05]} 57... Rf6
{[%clk 0:00:03.5]} 58. Ra5 {[%clk 0:00:04.5]} 58... Rd6 {[%clk 0:00:04.1]} 59.
f5+ {[%clk 0:00:04.9]} 59... Kf6 {[%clk 0:00:04.4]} 60. Kf4 {[%clk 0:00:05.8]}
60... d4 {[%clk 0:00:04.9]} 61. Ra2 {[%clk 0:00:04.5]} 61... d3 {[%clk
0:00:05.3]} 62. Rd2 {[%clk 0:00:03.5]} 62... Rd4+ {[%clk 0:00:05.4]} 63. Ke3
{[%clk 0:00:03.8]} 63... Ke5 {[%clk 0:00:06]} 64. f6 {[%clk 0:00:02.2]} 64...
Rd5 {[%clk 0:00:05.8]} 65. Rxd3 {[%clk 0:00:02.3]} 65... Rxd3+ {[%clk
0:00:05.8]} 66. Kxd3 {[%clk 0:00:03.2]} 66... Kxf6 {[%clk 0:00:06.3]} 67. Ke4
{[%clk 0:00:03]} 67... Kg5 {[%clk 0:00:06.7]} 68. Ke3 {[%clk 0:00:03]} 68... Kf5
{[%clk 0:00:05.9]} 69. Kf3 {[%clk 0:00:03.1]} 69... f6 {[%clk 0:00:06.2]} 70.
Ke3 {[%clk 0:00:03.1]} 70... Kg4 {[%clk 0:00:06.5]} 71. Kf2 {[%clk 0:00:03.2]}
71... Kf4 {[%clk 0:00:06.8]} 0-1

[Event "*** SCC Grand Prix: Titled Tuesday Blitz"]
[Site "Chess.com"]
[Date "2020.07.14"]
[Round "2"]
[White "GjakanTati"]
[Black "Infernal_XaM"]
[Result "1-0"]
[WhiteElo "2588"]
[BlackElo "2990"]
[TimeControl "180+1"]
[EndTime "10:20:11 PDT"]
[Termination "GjakanTati won by resignation"]

1. d4 {[%clk 0:03:00.9]} 1... Nf6 {[%clk 0:03:00]} 2. c4 {[%clk 0:03:00.8]} 2...
e6 {[%clk 0:03:00.6]} 3. Nf3 {[%clk 0:02:59.8]} 3... c5 {[%clk 0:02:59.8]} 4. d5
{[%clk 0:02:59.7]} 4... exd5 {[%clk 0:03:00.5]} 5. cxd5 {[%clk 0:03:00.6]} 5...
d6 {[%clk 0:03:01.4]} 6. Nc3 {[%clk 0:03:01]} 6... g6 {[%clk 0:03:02]} 7. h3
{[%clk 0:02:59.9]} 7... Bg7 {[%clk 0:03:02.3]} 8. e4 {[%clk 0:02:52.9]} 8... O-O
{[%clk 0:03:02.6]} 9. Be2 {[%clk 0:02:53.3]} 9... Re8 {[%clk 0:02:59.4]} 10. Nd2
{[%clk 0:02:52.9]} 10... Na6 {[%clk 0:02:47.9]} 11. O-O {[%clk 0:02:51.4]} 11...
Nc7 {[%clk 0:02:47.6]} 12. a4 {[%clk 0:02:51.2]} 12... b6 {[%clk 0:02:44.3]} 13.
Re1 {[%clk 0:02:30.1]} 13... Rb8 {[%clk 0:02:43.1]} 14. Bf1 {[%clk 0:02:27.7]}
14... a6 {[%clk 0:02:18.3]} 15. Nc4 {[%clk 0:02:26.7]} 15... b5 {[%clk
0:02:11.8]} 16. axb5 {[%clk 0:02:19.2]} 16... axb5 {[%clk 0:02:12.7]} 17. Na5
{[%clk 0:02:19.4]} 17... Bd7 {[%clk 0:02:13.2]} 18. Nc6 {[%clk 0:02:16.8]} 18...
Bxc6 {[%clk 0:02:13]} 19. dxc6 {[%clk 0:02:17.7]} 19... Rb6 {[%clk 0:02:01.9]}
20. Bf4 {[%clk 0:02:01.4]} 20... Rxc6 {[%clk 0:01:51.7]} 21. Nxb5 {[%clk
0:01:59.4]} 21... Nxe4 {[%clk 0:01:46.2]} 22. Nxc7 {[%clk 0:01:54.4]} 22... Rxc7
{[%clk 0:01:45.6]} 23. Bb5 {[%clk 0:01:44.7]} 23... Bd4 {[%clk 0:01:22.3]} 24.
Bxe8 {[%clk 0:01:36.6]} 24... Bxf2+ {[%clk 0:01:20.2]} 25. Kh2 {[%clk
0:01:34.5]} 25... Bxe1 {[%clk 0:01:20.8]} 26. Bb5 {[%clk 0:01:23.9]} 26... Qh4
{[%clk 0:01:09.5]} 27. Qf3 {[%clk 0:01:18]} 27... Re7 {[%clk 0:00:49.6]} 28. Bc6
{[%clk 0:01:06.2]} 28... Ng5 {[%clk 0:00:32.4]} 29. Qf1 {[%clk 0:00:47.9]} 29...
h6 {[%clk 0:00:13.9]} 30. Bxd6 {[%clk 0:00:46.2]} 30... Re6 {[%clk 0:00:12.9]}
31. Ra8+ {[%clk 0:00:44.8]} 31... Kh7 {[%clk 0:00:13.3]} 32. Bf4 {[%clk
0:00:15.3]} 32... Rf6 {[%clk 0:00:13.2]} 33. g3 {[%clk 0:00:12]} 33... Bxg3+
{[%clk 0:00:10.9]} 34. Bxg3 {[%clk 0:00:12.3]} 34... Qxg3+ {[%clk 0:00:11.4]}
35. Kxg3 {[%clk 0:00:11.9]} 35... Rxf1 {[%clk 0:00:12.1]} 36. Ra5 {[%clk
0:00:11.5]} 36... Ne6 {[%clk 0:00:12]} 37. Bd5 {[%clk 0:00:11.4]} 37... Nd4
{[%clk 0:00:09.8]} 38. Rxc5 {[%clk 0:00:10.7]} 38... Rf5 {[%clk 0:00:09.9]} 39.
b4 {[%clk 0:00:10.1]} 39... Ne2+ {[%clk 0:00:09.9]} 40. Kh2 {[%clk 0:00:10.2]}
40... Rf2+ {[%clk 0:00:09.4]} 41. Kh1 {[%clk 0:00:09.5]} 41... Kg7 {[%clk
0:00:09.6]} 42. Bc4 {[%clk 0:00:09.1]} 42... Ng3+ {[%clk 0:00:09.1]} 43. Kg1
{[%clk 0:00:09.5]} 43... Rf4 {[%clk 0:00:07.8]} 44. Rc7 {[%clk 0:00:08.7]} 44...
Ne4 {[%clk 0:00:08.2]} 45. b5 {[%clk 0:00:08.8]} 45... Nd6 {[%clk 0:00:08.8]}
46. Bd3 {[%clk 0:00:08.4]} 46... Rd4 {[%clk 0:00:08.3]} 47. Bf1 {[%clk
0:00:07.9]} 47... Rb4 {[%clk 0:00:08.5]} 48. Rc6 {[%clk 0:00:07.3]} 48... Nb7
{[%clk 0:00:07.5]} 49. b6 {[%clk 0:00:06.8]} 49... g5 {[%clk 0:00:06.3]} 50. Ba6
{[%clk 0:00:05.8]} 50... Na5 {[%clk 0:00:06.7]} 51. Rc5 {[%clk 0:00:05.1]} 51...
Nb3 {[%clk 0:00:05.2]} 52. Rc6 {[%clk 0:00:04]} 52... Nd4 {[%clk 0:00:05]} 53.
Rd6 {[%clk 0:00:04.3]} 53... Nf5 {[%clk 0:00:04.7]} 54. Rc6 {[%clk 0:00:04.6]}
54... Ne7 {[%clk 0:00:05.1]} 55. Rd6 {[%clk 0:00:04.2]} 55... Nf5 {[%clk
0:00:05.1]} 56. Rc6 {[%clk 0:00:04.6]} 56... h5 {[%clk 0:00:05.4]} 57. b7 {[%clk
0:00:04.5]} 57... Nd4 {[%clk 0:00:03.3]} 58. Rc8 {[%clk 0:00:04.6]} 58... Rb2
{[%clk 0:00:03.4]} 59. b8=Q {[%clk 0:00:04.4]} 59... Nf3+ {[%clk 0:00:04.1]} 60.
Kf1 {[%clk 0:00:04.2]} 60... Nh2+ {[%clk 0:00:04.6]} 61. Ke1 {[%clk 0:00:04.6]}
61... Nf3+ {[%clk 0:00:05]} 62. Kd1 {[%clk 0:00:05.1]} 62... Rxb8 {[%clk
0:00:05.2]} 63. Rxb8 {[%clk 0:00:06]} 63... g4 {[%clk 0:00:04.7]} 64. hxg4
{[%clk 0:00:05.8]} 64... hxg4 {[%clk 0:00:05.6]} 65. Ke2 {[%clk 0:00:06.4]}
65... Ne5 {[%clk 0:00:05.7]} 66. Kf2 {[%clk 0:00:06.6]} 66... f5 {[%clk
0:00:06.1]} 67. Rb7+ {[%clk 0:00:06.7]} 67... Kf6 {[%clk 0:00:06.5]} 68. Kg3
{[%clk 0:00:07]} 68... Kg5 {[%clk 0:00:07]} 69. Rg7+ {[%clk 0:00:07]} 69... Kf6
{[%clk 0:00:06.4]} 70. Rg8 {[%clk 0:00:07.9]} 70... Kf7 {[%clk 0:00:06]} 71. Ra8
{[%clk 0:00:06.3]} 71... Kf6 {[%clk 0:00:06.5]} 72. Be2 {[%clk 0:00:05.8]} 72...
Kg5 {[%clk 0:00:06.1]} 73. Rg8+ {[%clk 0:00:05.6]} 73... Ng6 {[%clk 0:00:06.2]}
74. Bd3 {[%clk 0:00:04]} 74... Kf6 {[%clk 0:00:06.5]} 75. Ra8 {[%clk 0:00:03.5]}
75... f4+ {[%clk 0:00:04.4]} 76. Kg2 {[%clk 0:00:02.1]} 76... Ne5 {[%clk
0:00:04.6]} 77. Ra6+ {[%clk 0:00:02.7]} 77... Kg5 {[%clk 0:00:04.9]} 78. Ra5
{[%clk 0:00:03.6]} 78... Kf6 {[%clk 0:00:05.2]} 79. Be4 {[%clk 0:00:04.1]} 79...
Ke6 {[%clk 0:00:03]} 80. Kf2 {[%clk 0:00:04.2]} 80... Kf6 {[%clk 0:00:03.4]} 81.
Ra6+ {[%clk 0:00:04.4]} 81... Kg5 {[%clk 0:00:03.7]} 82. Re6 {[%clk 0:00:04.9]}
82... Nc4 {[%clk 0:00:02.9]} 83. Rg6+ {[%clk 0:00:05]} 83... Kh4 {[%clk
0:00:03.4]} 84. Rf6 {[%clk 0:00:05.4]} 84... Kg5 {[%clk 0:00:03.2]} 85. Rf5+
{[%clk 0:00:05.7]} 1-0

[Event "*** SCC Grand Prix: Titled Tuesday Blitz"]
[Site "Chess.com"]
[Date "2020.07.14"]
[Round "3"]
[White "Love_craft"]
[Black "DenisQ"]
[Result "1/2-1/2"]
[WhiteElo "2469"]
[BlackElo "2642"]
[TimeControl "180+1"]
[EndTime "10:23:17 PDT"]
[Termination "Game drawn by agreement"]

1. d4 {[%clk 0:03:00.9]} 1... d5 {[%clk 0:02:58.6]} 2. c4 {[%clk 0:03:00.5]}
2... c6 {[%clk 0:02:58.4]} 3. Nd2 {[%clk 0:03:00.6]} 3... Nf6 {[%clk 0:02:58.4]}
4. Ngf3 {[%clk 0:03:00.6]} 4... Bf5 {[%clk 0:02:57.1]} 5. g3 {[%clk 0:03:00.6]}
5... e6 {[%clk 0:02:56.4]} 6. Bg2 {[%clk 0:03:00.8]} 6... h6 {[%clk 0:02:55.9]}
7. O-O {[%clk 0:03:00.9]} 7... Nbd7 {[%clk 0:02:55.5]} 8. b3 {[%clk 0:03:01.3]}
8... Bd6 {[%clk 0:02:53.9]} 9. Bb2 {[%clk 0:03:01.5]} 9... O-O {[%clk
0:02:53.6]} 10. Rc1 {[%clk 0:03:01]} 10... Qe7 {[%clk 0:02:51.2]} 11. Ne5 {[%clk
0:02:57.2]} 11... Ba3 {[%clk 0:02:48.5]} 12. Nxd7 {[%clk 0:02:42.1]} 12... Nxd7
{[%clk 0:02:29.7]} 13. Bxa3 {[%clk 0:02:42.3]} 13... Qxa3 {[%clk 0:02:29.2]} 14.
Ra1 {[%clk 0:02:43.2]} 14... Rfd8 {[%clk 0:02:23.7]} 15. Qc1 {[%clk 0:02:41.8]}
1/2-1/2